fUSD/lending_fUSD_20240514
["ID","MTS","AMOUNT","RATE_DAILY","PERIOD"]
[326992166,1715691048939,-500.0,0.00012911,2]
[326992167,1715691048950,-500.0,0.0001292,2]
[326992168,1715691048959,-500.0,0.00012929,2]
[326992169,1715691048969,-500.0,0.00012937,2]
[326992170,1715691048980,-500.0,0.00012946,2]
[326992171,1715691048990,-500.0,0.00012955,2]
[326992172,1715691048999,-500.0,0.00012964,2]
[326992173,1715691049009,-500.0,0.00012973,2]
[326992174,1715691049019,-220.770376,0.00012976,2]
[326992175,1715691049029,-500.0,0.00012981,2]
[326992176,1715691049039,-203.598,0.00012987,2]
[326992177,1715691049049,-750.78,0.00012988,2]
[326992178,1715691049059,-1032.33,0.00012988,2]
[326992179,1715691049069,-3087.47726091,0.00012989,2]
[326992180,1715691049079,-750.78,0.00012989,2]
[326992181,1715691049088,-750.78,0.00012989,2]
[326992182,1715691049099,-151.0,0.00012989,2]
[326992183,1715691049108,-151.0,0.00012989,2]
[326992184,1715691049119,-151.0,0.00012989,2]
[326992185,1715691049128,-169.959184,0.00012989,2]
[326992186,1715691049138,-151.0,0.00012989,2]
[326992187,1715691049148,-1032.33,0.00012989,2]
[326992188,1715691049158,-1032.33,0.00012989,2]
[326992189,1715691049168,-169.959184,0.00012989,2]
[326992190,1715691049178,-151.0,0.00012989,2]
[326992191,1715691049188,-153.101012,0.00012989,2]
[326992192,1715691049197,-202.293002,0.00012989,2]
[326992193,1715691049207,-211.393526,0.00012989,2]
[326992194,1715691049217,-1259.17,0.00012989,2]
[326992195,1715691049227,-1259.17,0.00012989,2]
[326992196,1715691049236,-211.393526,0.00012989,2]
[326992197,1715691049246,-287.368274,0.00012989,2]
[326992198,1715691049256,-287.368274,0.00012989,2]
[326992199,1715691049265,-500.0,0.00012989,2]
[326992200,1715691049275,-500.0,0.00012989,2]
[326992201,1715691049285,-500.0,0.00012989,2]
[326992202,1715691049295,-500.0,0.00012989,2]
[326992203,1715691049304,-246.10326496,0.00012989,2]
[326992204,1715691049313,-1650.17,0.00012989,2]
[326992205,1715691049323,-1650.17,0.00012989,2]
[326992206,1715691049333,-500.0,0.00012989,2]
[326992207,1715691049343,-500.0,0.00012989,2]
[326992208,1715691049356,-1518.58,0.00012989,2]
[326992209,1715691049365,-1518.58,0.00012989,2]
[326992210,1715691049375,-151.0,0.00012989,2]
[326992211,1715691049386,-151.0,0.00012989,2]
[326992212,1715691049396,-1679.65,0.00012989,2]
[326992213,1715691049409,-1679.65,0.00012989,2]
[326992214,1715691049418,-151.0,0.00012989,2]
[326992215,1715691049427,-2324.04,0.00012989,2]
[326992216,1715691049438,-2324.04,0.00012989,2]
[326992217,1715691049449,-1885.34,0.00012989,2]
[326992218,1715691049459,-1885.34,0.00012989,2]
[326992219,1715691049469,-151.0,0.00012989,2]
[326992220,1715691049479,-151.0,0.00012989,2]
[326992221,1715691049489,-500.0,0.00012989,2]
[326992222,1715691049499,-164.37,0.00012989,2]
[326992223,1715691049510,-159.84304,0.00012989,2]
[326992224,1715691049520,-187.830465,0.00012989,2]
[326992225,1715691049530,-159.84304,0.00012989,2]
[326992226,1715691049539,-187.830465,0.00012989,2]
[326992227,1715691049549,-151.0,0.00012989,2]
[326992228,1715691049559,-561.82,0.00012989,2]
[326992229,1715691049569,-561.82,0.00012989,2]
[326992230,1715691049579,-1673.38,0.00012989,2]
[326992231,1715691049589,-1673.38,0.00012989,2]
[326992232,1715691049599,-629.73,0.00012989,2]
[326992233,1715691049609,-629.73,0.00012989,2]
[326992234,1715691049619,-151.0,0.00012989,2]
[326992235,1715691049629,-1993.57,0.00012989,2]
[326992236,1715691049638,-1993.57,0.00012989,2]
[326992237,1715691049648,-1386.15,0.00012989,2]
[326992238,1715691049659,-1386.15,0.00012989,2]
[326992239,1715691049669,-1710.38,0.00012989,2]
[326992240,1715691049678,-1710.38,0.00012989,2]
[326992241,1715691049688,-1695.7,0.00012989,2]
[326992242,1715691049698,-1695.7,0.00012989,2]
[326992243,1715691049708,-459564.58108617,0.0001299,6]
[326992244,1715691049718,-151.0,0.0001299,2]
[326992245,1715691049728,-205.286626,0.0001299,2]
[326992246,1715691049935,-151.0,0.0001299,2]
[326992247,1715691049945,-151.0,0.0001299,2]
[326992248,1715691049955,-151.0,0.0001299,2]
[326992249,1715691049966,-151.0,0.0001299,2]
[326992250,1715691049975,-151.0,0.0001299,2]
[326992251,1715691049985,-151.0,0.0001299,2]
[326992252,1715691049995,-360.530113,0.0001299,2]
[326992253,1715691050005,-360.530113,0.0001299,2]
[326992254,1715691050014,-151.0,0.0001299,2]
[326992255,1715691050024,-151.0,0.0001299,2]
[326992256,1715691050034,-151.0,0.0001299,2]
[326992257,1715691050043,-151.0,0.0001299,2]
[326992258,1715691050053,-151.0,0.0001299,2]
[326992259,1715691050062,-151.0,0.0001299,2]
[326992260,1715691050072,-151.0,0.0001299,2]
[326992261,1715691050082,-151.0,0.0001299,2]
[326992262,1715691050091,-226.851358,0.0001299,2]
[326992263,1715691050100,-226.851358,0.0001299,2]
[326992264,1715691050109,-151.0,0.0001299,2]
[326992265,1715691050119,-151.0,0.0001299,2]
[326992266,1715691050128,-151.0,0.0001299,2]
[326992267,1715691050137,-151.615418,0.0001299,2]
[326992268,1715691050146,-151.0,0.0001299,2]
[326992269,1715691050155,-151.0,0.0001299,2]
[326992270,1715691050166,-265.738201,0.0001299,2]
[326992271,1715691050175,-169.959184,0.0001299,2]
[326992272,1715691050186,-151.0,0.0001299,2]
[326992273,1715691050196,-169.959184,0.0001299,2]
[326992274,1715691050205,-151.0,0.0001299,2]
[326992275,1715691050215,-202.293002,0.0001299,2]
[326992276,1715691050224,-151.0,0.0001299,2]
[326992277,1715691050233,-202.293002,0.0001299,2]
[326992278,1715691050243,-211.393526,0.0001299,2]
[326992279,1715691050252,-211.393526,0.0001299,2]
[326992280,1715691050261,-153.741497,0.0001299,2]
[326992281,1715691050271,-151.0,0.0001299,2]
[326992282,1715691050280,-287.368274,0.0001299,2]
[326992283,1715691050289,-287.368274,0.0001299,2]
[326992284,1715691050299,-151.0,0.0001299,2]
[326992285,1715691050308,-921.17486,0.0001299,2]
[326992286,1715691050317,-921.17486,0.0001299,2]
[326992287,1715691050327,-151.0,0.0001299,2]
[326992288,1715691050336,-151.0,0.0001299,2]
[326992289,1715691050347,-151.0,0.0001299,2]
[326992290,1715691050359,-151.0,0.0001299,2]
[326992291,1715691050368,-155.148557,0.0001299,2]
[326992292,1715691050378,-151.0,0.0001299,2]
[326992293,1715691050387,-151.0,0.0001299,2]
[326992294,1715691050399,-151.0,0.0001299,2]
[326992295,1715691050409,-151.0,0.0001299,2]
[326992296,1715691050419,-151.0,0.0001299,2]
[326992297,1715691050431,-188.550993,0.0001299,2]
[326992298,1715691050441,-188.550993,0.0001299,2]
[326992299,1715691050450,-151.0,0.0001299,2]
[326992300,1715691050460,-753.80056,0.0001299,2]
[326992301,1715691050470,-753.80056,0.0001299,2]
[326992302,1715691050480,-271.222379,0.0001299,2]
[326992303,1715691050489,-271.222379,0.0001299,2]
[326992304,1715691050498,-207.086008,0.0001299,2]
[326992305,1715691050508,-207.086008,0.0001299,2]
[326992306,1715691050518,-151.0,0.0001299,2]
[326992307,1715691050527,-151.0,0.0001299,2]
[326992308,1715691050538,-155.04809,0.0001299,2]
[326992309,1715691050548,-167.456985,0.0001299,2]
[326992310,1715691050557,-159.84304,0.0001299,2]
[326992311,1715691050567,-187.830465,0.0001299,2]
[326992312,1715691050577,-159.84304,0.0001299,2]
[326992313,1715691050586,-187.830465,0.0001299,2]
[326992314,1715691050596,-151.0,0.0001299,2]
[326992315,1715691050605,-151.0,0.0001299,2]
[326992316,1715691050614,-151.0,0.0001299,2]
[326992317,1715691050624,-151.0,0.0001299,2]
[326992318,1715691050633,-500.0,0.0001299,2]
[326992319,1715691050642,-512.74283902,0.00012991,2]
[326992320,1715691050652,-629.73,0.00012994,2]
[326992321,1715691050662,-500.0,0.00012995,2]
[326992322,1715691050672,-1912.13,0.00012995,2]
[326992323,1715691050681,-1352.38,0.00012995,2]
[326992324,1715691050691,-617.4312928,0.00012995,2]
[326992325,1715691050701,-500.0,0.00012995,2]
[326992326,1715691050709,-500.0,0.00012995,2]
[326992327,1715691050718,-2022.57743334,0.00012995,2]
[326992328,1715691050726,-672.74,0.00012995,2]
[326992329,1715691050735,-1542.4,0.00012995,2]
[326992330,1715691050742,-500.0,0.00012995,2]
[326992331,1715691050750,-1328.15,0.00012995,2]
[326992332,1715691050758,-500.0,0.00012995,2]
[326992333,1715691050765,-500.0,0.00012995,2]
[326992334,1715691050772,-500.0,0.00012995,2]
[326992335,1715691050779,-500.0,0.00012995,2]
[326992336,1715691050786,-500.0,0.00012995,2]
[326992337,1715691050794,-1492.72,0.00012995,2]
[326992338,1715691050800,-737.18,0.00012995,2]
[326992339,1715691050807,-391.22474978,0.00012995,2]
[326992340,1715691050815,-365.87237198,0.00012995,2]
[326992341,1715691050822,-500.0,0.00012995,2]
[326992342,1715691050830,-500.0,0.00012995,2]
[326992343,1715691050838,-2324.04,0.00012995,2]
[326992344,1715691050846,-513.91,0.00012995,2]
[326992345,1715691050853,-500.0,0.00012995,2]
[326992346,1715691050863,-1538.12,0.00012995,2]
[326992347,1715691050872,-816.25,0.00012995,2]
[326992348,1715691050882,-500.0,0.00012996,2]
[326992349,1715691050891,-500.0,0.00012996,2]
[326992350,1715691050900,-155.55226398,0.00012997,2]
[326992351,1715691050911,-7193.91701265,0.00012997,2]
[326992352,1715691050920,-438.55520697,0.00012997,2]
[326992353,1715691050930,-155.0,0.00012997,2]
[326992354,1715691050940,-367.00964115,0.00012997,2]
[326992355,1715691050949,-155.3047756,0.00012997,2]
[326992356,1715691050959,-155.0,0.00012997,2]
[326992357,1715691050968,-156.63582093,0.00012997,2]
[326992358,1715691050977,-676.07047739,0.00012997,2]
[326992359,1715691050987,-318.59270315,0.00012997,2]
[326992360,1715691050996,-273.46105239,0.00012997,2]
[326992361,1715691051006,-1264.0340538,0.00012997,2]
[326992362,1715691051015,-660.07063343,0.00012997,2]
[326992363,1715691051025,-159.15312055,0.00012997,2]
[326992364,1715691051034,-155.0,0.00012997,2]
[326992365,1715691051044,-306.92143567,0.00012997,2]
[326992366,1715691051054,-317.01827556,0.00012997,2]
[326992367,1715691051064,-195.96696143,0.00012997,2]
[326992368,1715691051073,-1523.88922511,0.00012997,2]
[326992369,1715691051083,-155.51216996,0.00012997,2]
[326992370,1715691051093,-261.54819671,0.00012997,2]
[326992371,1715691051102,-174.87662818,0.00012997,2]
[326992372,1715691051111,-155.9132,0.00012997,2]
[326992373,1715691051120,-155.0,0.00012997,2]
[326992374,1715691051130,-547.65997941,0.00012997,2]
[326992375,1715691051139,-155.12532813,0.00012997,2]
[326992376,1715691051148,-155.0,0.00012997,2]
[326992377,1715691051158,-6136.91024807,0.00012997,2]
[326992378,1715691051167,-268.13175477,0.00012997,2]
[326992379,1715691051176,-155.0,0.00012997,2]
[326992380,1715691051185,-200.86464643,0.00012997,2]
[326992381,1715691051194,-517.86261004,0.00012997,2]
[326992382,1715691051204,-500.0,0.00012997,2]
[326992383,1715691051213,-267.84904701,0.00012997,2]
[326992384,1715691051222,-242.00430088,0.00012997,2]
[326992385,1715691051231,-189.61661566,0.00012997,2]
[326992386,1715691051241,-500.0,0.00012997,2]
[326992387,1715691051250,-750.78,0.00012997,2]
[326992388,1715691051260,-1032.33,0.00012997,2]
[326992389,1715691051269,-1259.17,0.00012997,2]
[326992390,1715691051278,-1650.17,0.00012997,2]
[326992391,1715691051288,-1518.58,0.00012997,2]
[326992392,1715691051298,-1679.65,0.00012997,2]
[326992393,1715691051307,-2324.04,0.00012997,2]
[326992394,1715691051316,-1885.34,0.00012997,2]
[326992395,1715691051326,-561.82,0.00012997,2]
[326992396,1715691051335,-1673.38,0.00012997,2]
[326992397,1715691051346,-629.73,0.00012997,2]
[326992398,1715691051359,-1993.57,0.00012997,2]
[326992399,1715691051369,-1386.15,0.00012997,2]
[326992400,1715691051379,-1710.38,0.00012997,2]
[326992401,1715691051388,-1695.7,0.00012997,2]
[326992402,1715691051399,-1270.93207056,0.00012998,2]
[326992403,1715691051411,-616.51901983,0.00012998,2]
[326992404,1715691051421,-226.76655076,0.00012998,2]
[326992405,1715691051431,-2358.56522313,0.00012998,2]
[326992406,1715691051441,-521.44091417,0.00012998,2]
[326992407,1715691051450,-551.60952246,0.00012998,2]
[326992408,1715691051460,-500.0,0.00012998,2]
[326992409,1715691051469,-151.0,0.00012998,2]
[326992410,1715691051478,-151.0,0.00012998,2]
[326992411,1715691051488,-151.0,0.00012998,2]
[326992412,1715691051498,-151.0,0.00012998,2]
[326992413,1715691051507,-151.0,0.00012998,2]
[326992414,1715691051517,-1912.13,0.00012998,2]
[326992415,1715691051527,-1912.13,0.00012998,2]
[326992416,1715691051537,-1912.13,0.00012998,2]
[326992417,1715691051547,-1912.13,0.00012998,2]
[326992418,1715691051557,-151.0,0.00012998,2]
[326992419,1715691051566,-151.0,0.00012998,2]
[326992420,1715691051576,-1352.38,0.00012998,2]
[326992421,1715691051585,-1352.38,0.00012998,2]
[326992422,1715691051595,-1352.38,0.00012998,2]
[326992423,1715691051604,-1352.38,0.00012998,2]
[326992424,1715691051614,-151.0,0.00012998,2]
[326992425,1715691051624,-151.0,0.00012998,2]
[326992426,1715691051633,-154.055578,0.00012998,2]
[326992427,1715691051643,-151.0,0.00012998,2]
[326992428,1715691051652,-151.0,0.00012998,2]
[326992429,1715691051662,-151.0,0.00012998,2]
[326992430,1715691051672,-291.721738,0.00012998,2]
[326992431,1715691051681,-151.0,0.00012998,2]
[326992432,1715691051690,-151.0,0.00012998,2]
[326992433,1715691051699,-151.0,0.00012998,2]
[326992434,1715691051708,-151.0,0.00012998,2]
[326992435,1715691051718,-360.530113,0.00012998,2]
[326992436,1715691051727,-360.530113,0.00012998,2]
[326992437,1715691051736,-360.530113,0.00012998,2]
[326992438,1715691051746,-360.530113,0.00012998,2]
[326992439,1715691051755,-151.0,0.00012998,2]
[326992440,1715691051764,-151.0,0.00012998,2]
[326992441,1715691051773,-151.0,0.00012998,2]
[326992442,1715691051783,-151.0,0.00012998,2]
[326992443,1715691051792,-151.0,0.00012998,2]
[326992444,1715691051801,-151.0,0.00012998,2]
[326992445,1715691051811,-750.78,0.00012998,2]
[326992446,1715691051820,-750.78,0.00012998,2]
[326992447,1715691051830,-750.78,0.00012998,2]
[326992448,1715691051839,-750.78,0.00012998,2]
[326992449,1715691051848,-750.78,0.00012998,2]
[326992450,1715691051858,-750.78,0.00012998,2]
[326992451,1715691051868,-750.78,0.00012998,2]
[326992452,1715691051877,-750.8196449,0.00012998,2]
[326992453,1715691051886,-151.0,0.00012998,2]
[326992454,1715691051895,-151.0,0.00012998,2]
[326992455,1715691051905,-151.0,0.00012998,2]
[326992456,1715691051914,-151.0,0.00012998,2]
[326992457,1715691051923,-151.0,0.00012998,2]
[326992458,1715691051933,-151.0,0.00012998,2]
[326992459,1715691051943,-151.0,0.00012998,2]
[326992460,1715691051952,-151.0,0.00012998,2]
[326992461,1715691051962,-151.0,0.00012998,2]
[326992462,1715691051971,-151.0,0.00012998,2]
[326992463,1715691051980,-226.851358,0.00012998,2]
[326992464,1715691051989,-226.851358,0.00012998,2]
[326992465,1715691051998,-226.851358,0.00012998,2]
[326992466,1715691052007,-151.0,0.00012998,2]
[326992467,1715691052017,-151.0,0.00012998,2]
[326992468,1715691052026,-226.851358,0.00012998,2]
[326992469,1715691052036,-151.0,0.00012998,2]
[326992470,1715691052045,-151.0,0.00012998,2]
[326992471,1715691052054,-151.0,0.00012998,2]
[326992472,1715691052063,-151.0,0.00012998,2]
[326992473,1715691052073,-349.36,0.00012998,2]
[326992474,1715691052082,-151.0,0.00012998,2]
[326992475,1715691052091,-151.0,0.00012998,2]
[326992476,1715691052101,-500.0,0.00012998,2]
[326992477,1715691052110,-500.0,0.00012998,2]
[326992478,1715691052119,-500.0,0.00012998,2]
[326992479,1715691052130,-151.0,0.00012998,2]
[326992480,1715691052139,-151.0,0.00012998,2]
[326992481,1715691052149,-672.74,0.00012998,2]
[326992482,1715691052158,-672.74,0.00012998,2]
[326992483,1715691052170,-672.74,0.00012998,2]
[326992484,1715691052180,-672.74,0.00012998,2]
[326992485,1715691052189,-1542.4,0.00012998,2]
[326992486,1715691052198,-1542.4,0.00012998,2]
[326992487,1715691052208,-1542.4,0.00012998,2]
[326992488,1715691052218,-1542.4,0.00012998,2]
[326992489,1715691052228,-169.959184,0.00012998,2]
[326992490,1715691052238,-169.959184,0.00012998,2]
[326992491,1715691052248,-151.0,0.00012998,2]
[326992492,1715691052257,-151.0,0.00012998,2]
[326992493,1715691052305,-558.1171127,0.00012998,2]
[326992494,1715691052687,-3284.0799962,0.0001234,2]
[326992495,1715691052698,-599.27979208,0.0001234,2]
[326992496,1715691052716,-466.98336431,0.0001234,2]
[326992497,1715691052738,-521.65193489,0.0001234,2]
[326992498,1715691052814,-500.0,0.0001234,2]
[326992499,1715691052827,-875.65288026,0.0001234,2]
[326992511,1715692164313,-239.38744252,0.00010351,2]
[326992512,1715692164332,-540.58175103,0.00010352,2]
[326992513,1715692164353,-1213.61919427,0.00010352,2]
[326992514,1715692164374,-730.18951218,0.00010354,2]
[326992538,1715692231626,-155.0,0.00010347,2]
[326992539,1715692231637,-321.34456172,0.00010347,2]
[326992540,1715692231646,-968.88242453,0.00010348,2]
[326992541,1715692231657,-303.01838542,0.00010348,2]
[326992542,1715692231667,-259.32321251,0.00010349,2]
[326992543,1715692231679,-522.93703971,0.00010349,2]
[326992544,1715692231688,-882.90837981,0.00010349,2]
[326992545,1715692231697,-262.92731062,0.0001035,2]
[326992546,1715692231710,-201.22729486,0.00010351,2]
[326992547,1715692231722,-2657.2665935,0.00010351,2]
[326992548,1715692231733,-424.31470567,0.00010351,2]
[326992549,1715692231742,-180.08952442,0.00010354,2]
[326992550,1715692231753,-298.69141915,0.00010354,2]
[326992551,1715692231763,-249.5098939,0.00010376,2]
[326992552,1715692231775,-4025.43157072,0.00010376,2]
[326992553,1715692231785,-787.73301384,0.00010377,2]
[326992554,1715692231795,-90.30317751,0.00010409,2]
[326992555,1715692231807,-7876.43527198,0.00010409,2]
[326992556,1715692231820,-338.13057702,0.00010409,2]
[326992557,1715692231830,-672.97,0.00010411,2]
[326992558,1715692231840,-250.0,0.00010611,2]
[326992559,1715692231849,-159.31,0.00010673,2]
[326992560,1715692231859,-928.0,0.0001068,2]
[326992561,1715692231872,-288.53,0.00010703,2]
[326992562,1715692231882,-177.55,0.00010789,2]
[326992563,1715692231892,-159.31,0.00010951,2]
[326992564,1715692231902,-419.81,0.00010959,2]
[326992565,1715692231912,-349.85,0.00010959,2]
[326992566,1715692231922,-291.54,0.00010959,2]
[326992567,1715692231932,-242.95,0.00010959,2]
[326992568,1715692231942,-202.46,0.00010959,2]
[326992569,1715692231952,-168.71,0.00010959,2]
[326992570,1715692231961,-843.59,0.00010959,2]
[326992571,1715692231971,-250.0,0.00010984,2]
[326992572,1715692231981,-836.6898477,0.0001099,2]
[326992573,1715692231991,-975.43766607,0.00011106,2]
[326992574,1715692232001,-180.0,0.00011107,2]
[326992575,1715692232010,-159.31,0.00011229,2]
[326992576,1715692232020,-165.44,0.00011567,2]
[326992577,1715692232031,-2005.8594,0.0001159,2]
[326992578,1715692232040,-1260.2177,0.0001159,2]
[326992579,1715692232050,-6591.414,0.000116,2]
[326992580,1715692232059,-183.7,0.00011608,2]
[326992581,1715692232069,-615.84268411,0.0001168,2]
[326992582,1715692232078,-615.84268411,0.0001168,2]
[326992583,1715692232087,-615.84268411,0.0001168,2]
[326992584,1715692232097,-615.84268411,0.0001168,2]
[326992585,1715692232107,-615.84268411,0.0001168,2]
[326992586,1715692232120,-615.84268411,0.0001168,2]
[326992587,1715692232129,-615.84268411,0.0001168,2]
[326992588,1715692232138,-615.84268411,0.0001168,2]
[326992589,1715692232148,-615.84268411,0.0001168,2]
[326992590,1715692232158,-615.84268411,0.0001168,2]
[326992591,1715692232168,-615.84268411,0.0001168,2]
[326992592,1715692232178,-615.84268411,0.0001168,2]
[326992593,1715692232187,-615.84268411,0.0001168,2]
[326992594,1715692232196,-615.84268411,0.0001168,2]
[326992595,1715692232206,-615.84268411,0.0001168,2]
[326992596,1715692232215,-615.84268411,0.0001168,2]
[326992597,1715692232224,-615.84268411,0.0001168,2]
[326992598,1715692232233,-615.84268411,0.0001168,2]
[326992599,1715692232243,-615.84268411,0.0001168,2]
[326992600,1715692232252,-615.84268411,0.0001168,2]
[326992601,1715692232262,-615.84268411,0.0001168,2]
[326992602,1715692232271,-615.84268411,0.0001168,2]
[326992603,1715692232281,-615.84268411,0.0001168,2]
[326992604,1715692232292,-615.84268411,0.0001168,2]
[326992605,1715692232301,-615.84268411,0.0001168,2]
[326992606,1715692232311,-615.84268411,0.0001168,2]
[326992607,1715692232321,-615.84268411,0.0001168,2]
[326992608,1715692232330,-615.84268411,0.0001168,2]
[326992609,1715692232340,-615.84268411,0.0001168,2]
[326992610,1715692232350,-615.84268411,0.0001168,2]
[326992611,1715692232359,-615.84268411,0.0001168,2]
[326992612,1715692232370,-615.84268411,0.0001168,2]
[326992613,1715692232379,-615.84268411,0.0001168,2]
[326992614,1715692232388,-615.84268411,0.0001168,2]
[326992615,1715692232397,-615.84268411,0.0001168,2]
[326992616,1715692232406,-615.84268411,0.0001168,2]
[326992617,1715692232415,-615.84268411,0.0001168,2]
[326992618,1715692232425,-615.84268411,0.0001168,2]
[326992619,1715692232434,-615.84268411,0.0001168,2]
[326992620,1715692232444,-615.84268411,0.0001168,2]
[326992621,1715692232687,-615.84268411,0.0001168,2]
[326992622,1715692232697,-615.84268411,0.0001168,2]
[326992623,1715692232707,-615.84268411,0.0001168,2]
[326992624,1715692232721,-615.84268411,0.0001168,2]
[326992625,1715692232730,-615.84268411,0.0001168,2]
[326992626,1715692232740,-615.84268411,0.0001168,2]
[326992627,1715692232749,-615.84268411,0.0001168,2]
[326992628,1715692232759,-615.84268411,0.0001168,2]
[326992629,1715692232769,-615.84268411,0.0001168,2]
[326992630,1715692232778,-615.84268411,0.0001168,2]
[326992631,1715692232788,-615.84268411,0.0001168,2]
[326992632,1715692232800,-615.84268411,0.0001168,2]
[326992633,1715692232810,-615.84268411,0.0001168,2]
[326992634,1715692232819,-615.84268411,0.0001168,2]
[326992635,1715692232829,-615.84268411,0.0001168,2]
[326992636,1715692232839,-615.84268411,0.0001168,2]
[326992637,1715692232849,-615.84268411,0.0001168,2]
[326992638,1715692232858,-615.84268411,0.0001168,2]
[326992639,1715692232869,-615.84268411,0.0001168,2]
[326992640,1715692232878,-615.84268411,0.0001168,2]
[326992641,1715692232887,-615.84268411,0.0001168,2]
[326992642,1715692232897,-615.84268411,0.0001168,2]
[326992643,1715692232907,-615.84268411,0.0001168,2]
[326992644,1715692232917,-615.84268411,0.0001168,2]
[326992645,1715692232926,-615.84268411,0.0001168,2]
[326992646,1715692232935,-615.84268411,0.0001168,2]
[326992647,1715692232944,-615.84268411,0.0001168,2]
[326992648,1715692232955,-615.84268411,0.0001168,2]
[326992649,1715692232964,-615.84268411,0.0001168,2]
[326992650,1715692232974,-615.84268411,0.0001168,2]
[326992651,1715692232983,-615.84268411,0.0001168,2]
[326992652,1715692232993,-615.84268411,0.0001168,2]
[326992653,1715692233002,-615.84268411,0.0001168,2]
[326992654,1715692233011,-615.84268411,0.0001168,2]
[326992655,1715692233021,-615.84268411,0.0001168,2]
[326992656,1715692233030,-615.84268411,0.0001168,2]
[326992657,1715692233039,-615.84268411,0.0001168,2]
[326992658,1715692233050,-615.84268411,0.0001168,2]
[326992659,1715692233060,-615.84268411,0.0001168,2]
[326992660,1715692233069,-615.84268411,0.0001168,2]
[326992661,1715692233079,-615.84268411,0.0001168,2]
[326992662,1715692233088,-615.84268411,0.0001168,2]
[326992663,1715692233098,-615.84268411,0.0001168,2]
[326992664,1715692233107,-615.84268411,0.0001168,2]
[326992665,1715692233119,-615.84268411,0.0001168,2]
[326992666,1715692233128,-615.84268411,0.0001168,2]
[326992667,1715692233138,-615.84268411,0.0001168,2]
[326992668,1715692233147,-615.84268411,0.0001168,2]
[326992669,1715692233157,-615.84268411,0.0001168,2]
[326992670,1715692233166,-615.84268411,0.0001168,2]
[326992671,1715692233175,-615.84268411,0.0001168,2]
[326992672,1715692233184,-615.84268411,0.0001168,2]
[326992673,1715692233194,-615.84268411,0.0001168,2]
[326992674,1715692233203,-615.84268411,0.0001168,2]
[326992675,1715692233213,-615.84268411,0.0001168,2]
[326992676,1715692233222,-615.84268411,0.0001168,2]
[326992677,1715692233232,-615.84268411,0.0001168,2]
[326992678,1715692233241,-615.84268411,0.0001168,2]
[326992679,1715692233250,-615.84268411,0.0001168,2]
[326992680,1715692233260,-615.84268411,0.0001168,2]
[326992681,1715692233270,-150.03,0.0001169,2]
[326992682,1715692233280,-2717.60286237,0.0001169,2]
[326992683,1715692233290,-2717.60286237,0.0001169,2]
[326992684,1715692233299,-2717.60286237,0.0001169,2]
[326992685,1715692233309,-2717.60286237,0.0001169,2]
[326992686,1715692233319,-2717.60286237,0.0001169,2]
[326992687,1715692233328,-2717.60286237,0.0001169,2]
[326992688,1715692233337,-2717.60286237,0.0001169,2]
[326992689,1715692233347,-2717.60286237,0.0001169,2]
[326992690,1715692233356,-2717.60286237,0.0001169,2]
[326992691,1715692233371,-2717.60286237,0.0001169,2]
[326992692,1715692233380,-2717.60286237,0.0001169,2]
[326992693,1715692233390,-2717.60286237,0.0001169,2]
[326992694,1715692233400,-2717.60286237,0.0001169,2]
[326992695,1715692233409,-2717.60286237,0.0001169,2]
[326992696,1715692233418,-2717.60286237,0.0001169,2]
[326992697,1715692233428,-2717.60286237,0.0001169,2]
[326992698,1715692233437,-2717.60286237,0.0001169,2]
[326992699,1715692233447,-2717.60286237,0.0001169,2]